fUSD/lending_fUSD_20250906
["ID","MTS","AMOUNT","RATE_DAILY","PERIOD"]
[383875303,1757152240670,-4000.0,0.0003984,4]
[383875305,1757152240679,-4675.20055113,0.00039846,4]
[383875307,1757152240689,-466.0,0.00039856,15]
[383875309,1757152240699,-500.0,0.00039856,2]
[383875311,1757152240708,-251.60424676,0.00039856,15]
[383875313,1757152240718,-199.0,0.00039884,11]
[383875315,1757152240728,-500.0,0.00039886,7]
[383875317,1757152240738,-216.26385072,0.0003997,2]
[383875319,1757152240748,-162.5560616,0.0004,30]
[383875321,1757152240758,-2122.25420515,0.0004,120]
[383875323,1757152240767,-499.98,0.0004,120]
[383875325,1757152240777,-244.22311141,0.00040097,15]
[383875327,1757152240787,-2790.04938398,0.00040097,15]
[383875329,1757152240796,-2215.12,0.000401,30]
[383875331,1757152240805,-597.97778346,0.00040102,2]
[383875333,1757152240815,-500.0,0.00040102,2]
[383875335,1757152240824,-500.0,0.00040102,2]
[383875337,1757152240834,-500.0,0.00040102,2]
[383875339,1757152240844,-500.0,0.00040102,2]
[383875341,1757152240853,-616.7642418,0.00040102,2]
[383875343,1757152240863,-500.0,0.00040102,2]
[383875345,1757152240872,-382.36162392,0.00040102,2]
[383875347,1757152240881,-4675.20055113,0.0004012,4]
[383875349,1757152240892,-466.0,0.0004013,15]
[383875351,1757152240902,-500.0,0.0004013,2]
[383875353,1757152240911,-3491.56481,0.0004013,3]
[383875355,1757152240920,-4675.20055113,0.0004019,4]
[383875357,1757152240930,-8350.56,0.000402,14]
[383875359,1757152240940,-19999.99,0.0004029,2]
[383875361,1757152240949,-2616.16,0.0004029,2]
[383875363,1757152240959,-16178.23,0.0004029,2]
[383875365,1757152240969,-500.0,0.00040376,2]
[383875368,1757152240979,-500.0,0.00040376,2]
[383875370,1757152240990,-500.0,0.00040376,2]
[383875372,1757152240999,-402.58940745,0.00040376,2]
[383875374,1757152241009,-500.0,0.00040376,2]
[383875376,1757152241021,-244.22311141,0.00040397,15]
[383875378,1757152241030,-2790.04938398,0.00040397,15]
[383875380,1757152241039,-405.37,0.000404,30]
[383875382,1757152241048,-466.0,0.00040404,15]
[383875384,1757152241058,-500.0,0.00040404,2]
[383875386,1757152241068,-183.1,0.00040422,2]
[383875388,1757152241078,-161.11,0.00040489,2]
[383875390,1757152241087,-199.0,0.00040569,13]
[383875392,1757152241097,-4675.20055113,0.0004059,4]
[383875394,1757152241107,-1911.73,0.000406,14]
[383875396,1757152241117,-500.0,0.0004065,2]
[383875398,1757152241126,-500.0,0.0004065,2]
[383875400,1757152241135,-500.0,0.0004065,2]
[383875402,1757152241145,-500.0,0.0004065,2]
[383875404,1757152241155,-466.0,0.00040678,15]
[383875406,1757152241164,-500.0,0.00040678,2]
[383875408,1757152241174,-244.22311141,0.00040696,15]
[383875410,1757152241183,-2790.04938398,0.00040696,15]
[383875413,1757152241193,-891.48,0.00040789,120]
[383875415,1757152241203,-583.35115773,0.00040799,2]
[383875417,1757152241212,-499.98,0.00040821,120]
[383875419,1757152241221,-500.0,0.0004087,30]
[383875421,1757152241232,-153.0,0.00040888,30]
[383875423,1757152241242,-500.0,0.00040924,2]
[383875425,1757152241252,-500.0,0.00040924,2]
[383875427,1757152241262,-500.0,0.00040924,2]
[383875429,1757152241271,-500.0,0.00040924,2]
[383875431,1757152241280,-4675.20055113,0.00040942,4]
[383875433,1757152241290,-466.0,0.00040952,15]
[383875435,1757152241299,-500.0,0.00040952,2]
[383875437,1757152241308,-244.22311141,0.00040996,15]
[383875439,1757152241318,-2790.04938398,0.00040996,15]
[383875441,1757152241327,-155.45132369,0.00041,120]
[383875443,1757152241338,-556.99304275,0.00041,30]
[383875445,1757152241348,-158.0,0.00041,90]
[383875447,1757152241358,-4675.20055113,0.00041076,4]
[383875449,1757152241368,-666.0,0.00041079,2]
[383875451,1757152241377,-42076.8049602,0.00041086,4]
[383875453,1757152241386,-22007.7054458,0.00041086,4]
[383875455,1757152241395,-151.0,0.00041093,14]
[383875457,1757152241405,-501.49625987,0.00041096,8]
[383875459,1757152241415,-500.0,0.00041096,10]
[383875461,1757152241424,-349.0,0.00041096,120]
[383875463,1757152241435,-500.0,0.00041096,30]
[383875465,1757152241445,-500.0,0.00041096,30]
[383875467,1757152241455,-500.0,0.00041096,30]
[383875469,1757152241464,-500.0,0.00041096,30]
[383875471,1757152241473,-500.0,0.00041096,30]
[383875473,1757152241483,-500.0,0.00041096,30]
[383875475,1757152241493,-500.0,0.00041096,30]
[383875477,1757152241502,-500.0,0.00041096,30]
[383875479,1757152241511,-500.0,0.00041096,30]
[383875481,1757152241521,-500.0,0.00041096,30]
[383875483,1757152241531,-500.0,0.00041096,30]
[383875485,1757152241541,-500.0,0.00041096,30]
[383875487,1757152241551,-500.0,0.00041096,30]
[383875489,1757152241560,-500.0,0.00041096,30]
[383875491,1757152241570,-500.0,0.00041096,30]
[383875494,1757152241582,-500.0,0.00041096,30]
[383875495,1757152241592,-500.0,0.00041096,30]
[383875498,1757152241602,-500.0,0.00041096,30]
[383875500,1757152241611,-500.0,0.00041096,30]
[383875502,1757152241621,-500.0,0.00041096,30]
[383875504,1757152241631,-500.0,0.00041096,30]
[383875506,1757152241641,-500.0,0.00041096,30]
[383875508,1757152241650,-500.0,0.00041096,30]
[383875510,1757152241660,-500.0,0.00041096,30]
[383875512,1757152241670,-500.0,0.00041096,30]
[383875514,1757152241679,-500.0,0.00041096,30]
[383875516,1757152241689,-500.0,0.00041096,30]
[383875518,1757152241699,-500.0,0.00041096,30]
[383875520,1757152241708,-500.0,0.00041096,30]
[383875522,1757152241719,-500.0,0.00041096,30]
[383875524,1757152241728,-500.0,0.00041096,30]
[383875526,1757152241738,-500.0,0.00041096,30]
[383875528,1757152241747,-500.0,0.00041096,30]
[383875530,1757152241756,-500.0,0.00041096,30]
[383875532,1757152241766,-500.0,0.00041096,30]
[383875534,1757152241776,-500.0,0.00041096,30]
[383875536,1757152241785,-500.0,0.00041096,30]
[383875538,1757152241795,-500.0,0.00041096,30]
[383875540,1757152241805,-500.0,0.00041096,30]
[383875542,1757152241815,-500.0,0.00041096,30]
[383875544,1757152241825,-500.0,0.00041096,30]
[383875546,1757152241835,-500.0,0.00041096,30]
[383875548,1757152241845,-500.0,0.00041096,30]
[383875550,1757152241854,-500.0,0.00041096,30]
[383875552,1757152241864,-500.0,0.00041096,30]
[383875554,1757152241873,-500.0,0.00041096,30]
[383875556,1757152241883,-500.0,0.00041096,30]
[383875558,1757152241892,-500.0,0.00041096,30]
[383875560,1757152241903,-500.0,0.00041096,30]
[383875562,1757152241913,-500.0,0.00041096,30]
[383875564,1757152241923,-500.0,0.00041096,30]
[383875566,1757152241932,-500.0,0.00041096,30]
[383875568,1757152241941,-500.0,0.00041096,30]
[383875570,1757152241951,-500.0,0.00041096,30]
[383875572,1757152241960,-500.0,0.00041096,30]
[383875574,1757152241970,-500.0,0.00041096,30]
[383875576,1757152241980,-500.0,0.00041096,30]
[383875578,1757152241989,-500.0,0.00041096,30]
[383875580,1757152241999,-500.0,0.00041096,30]
[383875582,1757152242011,-500.0,0.00041096,30]
[383875585,1757152242020,-500.0,0.00041096,30]
[383875587,1757152242030,-500.0,0.00041096,30]
[383875589,1757152242040,-500.0,0.00041096,30]
[383875591,1757152242053,-500.0,0.00041096,30]
[383875592,1757152242064,-500.0,0.00041096,30]
[383875594,1757152242074,-500.0,0.00041096,30]
[383875596,1757152242083,-500.0,0.00041096,30]
[383875598,1757152242092,-500.0,0.00041096,30]
[383875601,1757152242102,-500.0,0.00041096,30]
[383875603,1757152242115,-500.0,0.00041096,30]
[383875605,1757152242125,-500.0,0.00041096,30]
[383875607,1757152242135,-500.0,0.00041096,30]
[383875609,1757152242144,-391.0,0.00041096,30]
[383875611,1757152242154,-9999.99,0.00041096,2]
[383875613,1757152242164,-1436.63,0.00041096,2]
[383875615,1757152242174,-9999.99,0.00041096,2]
[383875617,1757152242184,-9999.99,0.00041096,2]
[383875619,1757152242196,-9999.99,0.00041096,2]
[383875621,1757152242205,-37564.02,0.00041096,2]
[383875623,1757152242215,-3112.4,0.00041096,2]
[383875625,1757152242225,-52784.39,0.00041096,30]
[383875627,1757152242234,-3421.59,0.00041096,2]
[383875629,1757152242244,-1854.86,0.00041096,2]
[383875631,1757152242253,-999.99,0.00041096,2]
[383875633,1757152242264,-1155.31,0.00041096,2]
[383875635,1757152242274,-151.29,0.00041096,120]
[383875637,1757152242283,-499.99,0.00041096,2]
[383875639,1757152242292,-9259.98,0.00041096,2]
[383875641,1757152242302,-150.99,0.00041096,2]
[383875643,1757152242311,-2470.25,0.00041096,2]
[383875645,1757152242321,-1572.95,0.00041096,2]
[383875647,1757152242331,-340.98,0.00041096,2]
[383875649,1757152242341,-746.0,0.00041096,2]
[383875651,1757152242350,-500.0,0.000411,2]
[383875653,1757152242360,-4675.20055113,0.0004112,4]
[383875655,1757152242369,-5501.92636144,0.0004112,4]
[383875657,1757152242379,-666.0,0.00041125,2]
[383875660,1757152242388,-3491.5648,0.0004113,7]
[383875662,1757152242398,-391.0,0.0004114,30]
[383875664,1757152242409,-281.71,0.00041198,2]
[383875666,1757152242418,-500.0,0.00041198,2]
[383875668,1757152242427,-588.66603052,0.00041198,2]
[383875669,1757152242438,-500.0,0.00041198,2]
[383875671,1757152242448,-466.0,0.00041226,15]
[383875673,1757152242458,-561.64095358,0.00041226,2]
[383875675,1757152242468,-199.0,0.00041254,15]
[383875678,1757152242479,-667.0,0.00041278,2]
[383875679,1757152242489,-746.0,0.0004137,2]
[383875682,1757152242498,-4675.20055113,0.00041394,4]
[383875684,1757152242508,-500.0,0.00041472,2]
[383875686,1757152242518,-285.0,0.00041472,2]
[383875688,1757152242527,-5501.92636144,0.0004149,4]
[383875690,1757152242537,-466.0,0.000415,15]
[383875692,1757152242547,-1911.73,0.000416,14]
[383875694,1757152242557,-216.26385072,0.00041625,28]
[383875696,1757152242566,-499.98,0.00041643,120]
[383875698,1757152242575,-1000.0,0.00041644,10]
[383875700,1757152242590,-746.0,0.00041644,2]
[383875702,1757152242599,-4675.20055113,0.00041665,4]
[383875705,1757152242614,-667.0,0.00041675,7]
[383875707,1757152242624,-500.0,0.00041699,30]
[383875709,1757152242634,-2215.12,0.000417,30]
[383875711,1757152242645,-500.0,0.00041744,30]
[383875713,1757152242656,-500.0,0.00041746,2]
[383875715,1757152242667,-5501.92636144,0.00041772,4]
[383875717,1757152242678,-466.0,0.00041774,15]
[383875719,1757152242687,-4675.20055113,0.0004178,4]
[383875721,1757152242697,-666.0,0.00041782,7]
[383875723,1757152242707,-4675.20055113,0.0004179,4]
[383875725,1757152242717,-5501.92636144,0.0004179,4]
[383875728,1757152242727,-8350.56,0.000418,14]
[383875730,1757152242738,-5501.92636144,0.00041837,4]
[383875732,1757152242748,-9350.40110226,0.00041845,4]
[383875734,1757152242762,-5501.92636144,0.00041845,4]
[383875736,1757152242772,-666.0,0.00041847,2]
[383875738,1757152242782,-151.0,0.00041855,2]
[383875740,1757152242792,-250.0,0.00041855,2]
[383875742,1757152242802,-1795.50195243,0.00041855,2]
[383875744,1757152242812,-250.0,0.00041855,2]
[383875746,1757152242822,-250.0,0.00041855,2]
[383875748,1757152242832,-250.0,0.00041855,2]
[383875750,1757152242842,-250.0,0.00041855,2]
[383875753,1757152242852,-250.0,0.00041855,2]
[383875755,1757152242863,-322.6107,0.00041855,2]
[383875757,1757152242874,-250.0,0.00041855,2]
[383875759,1757152242884,-250.0,0.00041855,2]
[383875761,1757152242894,-250.0,0.00041855,2]
[383875763,1757152242903,-151.0,0.00041855,2]
[383875765,1757152242913,-250.0,0.00041855,2]
[383875767,1757152242923,-500.0,0.00041855,2]
[383875769,1757152242933,-250.0,0.00041855,2]
[383875771,1757152242943,-500.0,0.00041855,2]
[383875786,1757152243067,-250.0,0.00041855,2]
[383875788,1757152243077,-500.0,0.00041855,2]
[383875790,1757152243086,-309.98550198,0.00041855,2]
[383875792,1757152243095,-500.0,0.00041855,2]
[383875794,1757152243104,-500.0,0.00041855,2]
[383875795,1757152243114,-500.0,0.00041855,2]
[383875798,1757152243123,-500.0,0.00041855,2]
[383875800,1757152243134,-500.0,0.00041855,2]
[383875802,1757152243143,-500.0,0.00041855,2]
[383875803,1757152243153,-500.0,0.00041855,2]
[383875805,1757152243162,-500.0,0.00041855,2]
[383875808,1757152243171,-151.0,0.00041855,2]
[383875810,1757152243181,-257.91778498,0.00041855,2]
[383875812,1757152243190,-500.0,0.00041855,2]
[383875815,1757152243203,-181.78199263,0.00041855,2]
[383875817,1757152243213,-160.0,0.00041855,2]
[383875819,1757152243222,-193.04544289,0.00041855,2]
[383875821,1757152243232,-151.50990684,0.00041855,2]
[383875823,1757152243242,-274.84888765,0.00041855,2]
[383875825,1757152243254,-150.0,0.00041873,10]
[383875827,1757152243263,-14025.6016534,0.00041882,4]
[383875829,1757152243273,-38513.4845301,0.00041882,4]
[383875831,1757152243283,-5748.86274207,0.00041892,4]
[383875834,1757152243300,-71278.10631813,0.00041892,4]
[383875836,1757152243310,-405.37,0.000419,30]
[383875838,1757152243319,-746.0,0.00041918,2]
[383875840,1757152243330,-667.0,0.00041928,120]
[383875842,1757152243339,-183.1,0.00041928,14]
[383875844,1757152243350,-5501.92636144,0.00041929,4]
[383875846,1757152243359,-246.37158485,0.00041939,17]
[383875848,1757152243368,-500.0,0.0004202,2]
[383875850,1757152243378,-466.0,0.00042048,15]
[383875852,1757152243387,-183.09234757,0.00042073,14]
[383875854,1757152243396,-3491.56481,0.0004213,12]
[383875856,1757152243405,-5501.92636144,0.00042182,4]
[383875858,1757152243415,-501.53246808,0.00042192,10]
[383875860,1757152243425,-746.0,0.00042192,2]
[383875862,1757152243437,-666.0,0.00042211,2]
[383875864,1757152243447,-152.7,0.00042218,2]
[383875866,1757152243456,-666.0,0.00042227,2]
[383875868,1757152243465,-666.0,0.00042257,2]
[383875870,1757152243475,-666.0,0.00042277,2]
[383875872,1757152243484,-500.0,0.00042294,2]
[383875874,1757152243494,-64255.4873417,0.00042302,2]
[383875876,1757152243503,-466.0,0.00042322,15]
[383875878,1757152243512,-157.0,0.000424,120]
[383875880,1757152243522,-151.0,0.00042403,2]
[383875882,1757152243531,-151.0,0.00042403,2]
[383875884,1757152243540,-151.0,0.00042403,2]
[383875886,1757152243550,-250.0,0.00042421,10]
[383875888,1757152243559,-778.65545183,0.00042463,39]
[383875890,1757152243568,-311.10205897,0.00042465,120]
[383875892,1757152243580,-746.0,0.00042466,2]
[383875894,1757152243591,-5501.92636144,0.00042495,4]
[383875896,1757152243601,-610.46,0.00042499,30]
[383875898,1757152243610,-500.0,0.00042558,30]
[383875901,1757152243620,-500.0,0.00042568,2]
[383875903,1757152243629,-466.0,0.00042596,15]
[383875905,1757152243638,-589.51,0.00042675,30]
[383875907,1757152243648,-591.74,0.00042675,30]
[383875909,1757152243657,-1911.73,0.000427,14]
[383875911,1757152243667,-666.0,0.00042726,2]
[383875913,1757152243679,-746.0,0.0004274,2]
[383875916,1757152243688,-500.0,0.00042842,2]
[383875919,1757152243698,-500.20165336,0.00042857,30]
[383875922,1757152243707,-466.0,0.0004287,15]
[383875924,1757152243717,-5501.92636144,0.00042938,4]
[383875926,1757152243727,-151.0,0.00042951,2]
[383875928,1757152243736,-151.0,0.00042951,2]
[383875930,1757152243745,-270.54895286,0.00042951,2]
[383875932,1757152243754,-350.0,0.00042968,10]
[383875934,1757152243765,-746.0,0.00043014,2]
[383875936,1757152243775,-500.0,0.00043116,2]
[383875938,1757152243784,-3491.5648,0.0004313,17]
[383875940,1757152243794,-466.0,0.00043144,15]
[383875942,1757152243803,-158.0,0.00043151,90]
[383875944,1757152243813,-5501.92636144,0.00043214,4]
[383875946,1757152243822,-583.35115773,0.00043219,10]
[383875948,1757152243832,-334.5472959,0.00043224,2]
[383875950,1757152243841,-267.46074303,0.00043224,2]
[383875953,1757152243852,-160.0,0.00043224,2]
[383875955,1757152243863,-5501.92636144,0.00043249,4]
[383875957,1757152243876,-5501.92636144,0.0004326,4]
[383875959,1757152243886,-22007.7054458,0.00043269,4]
[383875961,1757152243896,-1606.8961233,0.00043279,2]
[383875963,1757152243905,-216.26385072,0.0004328,28]
[383875965,1757152243915,-746.0,0.00043288,2]
[383875967,1757152243926,-318.65751276,0.0004339,2]
[383875969,1757152243936,-2215.12,0.000434,30]
[383875971,1757152243946,-466.0,0.00043418,15]
[383875973,1757152243955,-666.0,0.00043476,7]
[383875975,1757152243964,-167.25,0.00043484,2]
[383875977,1757152243974,-151.0,0.00043499,2]
[383875980,1757152243984,-151.8384098,0.00043499,2]
[383875982,1757152243993,-450.0,0.00043516,10]
[383875984,1757152244003,-746.0,0.00043562,2]
[383875986,1757152244013,-666.0,0.00043647,120]
[383875988,1757152244023,-666.0,0.00043685,120]
[383875990,1757152244032,-466.0,0.00043692,15]
[383875992,1757152244042,-405.37,0.000437,30]
[383875994,1757152244052,-8350.56,0.000437,14]
[383875996,1757152244062,-491.49660913,0.000438,30]
[383875998,1757152244072,-669.0,0.00043813,2]
[383876000,1757152244082,-150.0,0.00043836,10]
[383876002,1757152244091,-500.0,0.00043836,31]
[383876004,1757152244100,-500.0,0.00043836,31]
[383876006,1757152244110,-261.0401699,0.00043836,31]
[383876008,1757152244120,-746.0,0.00043836,2]
[383876010,1757152244129,-1911.73,0.000439,14]
[383876012,1757152244138,-500.0,0.00043963,30]
[383876014,1757152244148,-466.0,0.00043966,15]
[383876016,1757152244157,-1121.1669554,0.00043987,120]
[383876018,1757152244167,-326.92486487,0.00044,120]
[383876020,1757152244176,-2119.35720862,0.00044,120]
[383876022,1757152244185,-151.0,0.00044047,2]
[383876024,1757152244194,-652.30562018,0.00044064,10]
[383876026,1757152244204,-669.0,0.00044086,7]
[383876028,1757152244213,-746.0,0.0004411,2]
[383876030,1757152244224,-666.0,0.00044141,2]
[383876032,1757152244234,-500.0,0.00044199,30]
[383876035,1757152244244,-466.0,0.0004424,15]
[383876036,1757152244253,-595.86,0.00044279,30]
[383876038,1757152244263,-5577.0,0.0004432,7]
[383876040,1757152244272,-666.0,0.00044324,7]
[383876042,1757152244281,-666.0,0.00044353,2]
[383876044,1757152244291,-358.5469893,0.00044368,2]
[383876046,1757152244301,-500.0,0.00044378,30]
[383876048,1757152244311,-151.0,0.00044384,10]
[383876050,1757152244320,-746.0,0.00044384,2]
[383876052,1757152244331,-374.38642563,0.0004439,120]
[383876055,1757152244341,-430.82057607,0.000444,33]
[383876057,1757152244351,-730.5960383,0.00044482,120]
[383876058,1757152244360,-571.19697879,0.000445,7]
[383876059,1757152244369,-466.0,0.00044513,15]
[383876060,1757152244378,-666.0,0.00044534,2]
[383876061,1757152244387,-667.0,0.0004456,2]
[383876062,1757152244396,-346.92554585,0.00044593,2]
[383876063,1757152244405,-277.35679052,0.00044593,2]
[383876064,1757152244414,-160.0,0.00044593,2]
[383876065,1757152244423,-151.0,0.00044595,2]
[383876066,1757152244432,-666.0,0.00044647,7]
[383876067,1757152244441,-746.0,0.00044658,2]
[383876068,1757152244450,-500.0,0.00044684,30]
[383876069,1757152244459,-2215.12,0.000447,30]
[383876070,1757152244467,-669.0,0.00044716,120]
[383876071,1757152244476,-3011.38049103,0.0004472,120]
[383876072,1757152244485,-466.0,0.00044787,15]
[383876073,1757152244495,-519.7152201,0.000448,120]
[383876074,1757152244504,-500.0,0.00044849,30]
[383876076,1757152244513,-891.48,0.00044868,120]
[383876078,1757152244522,-405.37,0.000449,30]
[383876080,1757152244531,-2000.0,0.000449,2]
[383876082,1757152244541,-8350.56,0.000449,14]
[383876084,1757152244551,-1911.73,0.000449,14]
[383876086,1757152244560,-600.0,0.000449,16]
[383876088,1757152244569,-152.0,0.00044932,10]
[383876090,1757152244579,-746.0,0.00044932,2]
[383876092,1757152244591,-216.26385072,0.00044935,28]
[383876094,1757152244601,-150.0,0.00044955,93]
[383876096,1757152244610,-150.0,0.00044955,93]
[383876098,1757152244619,-30300.49532634,0.00045,2]
[383876100,1757152244629,-197.21836807,0.00045,120]
[383876102,1757152244641,-13265.44063902,0.00045,120]
[383876104,1757152244650,-322.85434302,0.00045,120]
[383876106,1757152244660,-51807.73787618,0.00045,120]
[383876108,1757152244670,-428.31413345,0.00045,120]
[383876110,1757152244679,-478.14697816,0.00045,120]
[383876112,1757152244688,-5091.96432432,0.00045,120]
[383876114,1757152244698,-337.89571359,0.00045,120]
[383876116,1757152244707,-308.69188117,0.00045,120]
[383876118,1757152244717,-466.0,0.00045061,15]
[383876120,1757152244727,-188.88561136,0.0004513,120]
[383876122,1757152244738,-746.0,0.00045206,2]
[383876124,1757152244748,-667.0,0.00045212,2]
[383876126,1757152244758,-548.0,0.00045254,60]
[383876128,1757152244767,-466.0,0.00045335,15]
[383876130,1757152244777,-778.65545183,0.00045391,46]
[383876132,1757152244787,-500.0,0.00045473,30]
[383876134,1757152244796,-153.0,0.00045479,10]
[383876136,1757152244806,-746.0,0.0004548,2]
[383876138,1757152244815,-487.0,0.00045609,15]
[383876140,1757152244825,-583.35115773,0.0004564,20]
[383876142,1757152244834,-200.0,0.00045675,2]
[383876144,1757152244844,-175.8525877,0.000457,90]
[383876146,1757152244856,-223.76566616,0.000457,120]
[383876148,1757152244866,-746.0,0.00045754,2]
[383876150,1757152244876,-3509.95542347,0.000458,2]
[383876152,1757152244886,-359.76179104,0.00045962,2]
[383876154,1757152244896,-287.61899177,0.00045962,2]
[383876156,1757152244906,-2414.69886968,0.0004599,120]
[383876158,1757152244915,-235.87398347,0.00046,120]
[383876160,1757152244924,-152.1307941,0.00046,120]
[383876162,1757152244934,-5953.03247289,0.00046,120]
[383876164,1757152244944,-218.9480284,0.00046,120]
[383876166,1757152244953,-150.04201661,0.00046027,10]
[383876168,1757152244963,-746.0,0.00046028,2]
[383876170,1757152244973,-237.35046727,0.0004613,120]
[383876172,1757152244983,-2215.12,0.000462,30]
[383876174,1757152244992,-159.61,0.00046218,120]
[383876176,1757152245001,-746.0,0.00046301,2]
[383876178,1757152245011,-708.52361486,0.000464,120]
[383876180,1757152245021,-171.76784317,0.000464,120]
[383876182,1757152245033,-8350.56,0.000465,14]
[383876184,1757152245042,-500.0,0.00046565,30]
[383876186,1757152245052,-746.0,0.00046575,2]
[383876188,1757152245062,-216.26385072,0.0004659,28]
[383876190,1757152245071,-391.0,0.000466,2]
[383876192,1757152245082,-4000.0,0.00046652,120]
[383876194,1757152245091,-405.37,0.000467,30]
[383876196,1757152245101,-157.0,0.000467,120]
[383876198,1757152245110,-177.7784422,0.000468,60]
[383876200,1757152245120,-746.0,0.00046849,2]
[383876202,1757152245129,-500.0,0.00046869,30]
[383876204,1757152245139,-553.06406207,0.00047,120]
[383876206,1757152245148,-746.0,0.00047123,2]
[383876208,1757152245158,-500.0,0.00047154,30]
[383876210,1757152245168,-270.20133101,0.00047331,2]
[383876212,1757152245178,-298.26089446,0.00047331,2]
[383876214,1757152245187,-764.83606105,0.00047397,2]
[383876216,1757152245197,-500.0,0.00047413,30]
[383876218,1757152245206,-195.26523371,0.000475,120]
[383876219,1757152245215,-500.0,0.00047553,30]
[383876220,1757152245224,-5281.40996035,0.000476,2]
[383876221,1757152245233,-34547.0,0.000479,120]
[383876222,1757152245243,-794.5949877,0.00047967,2]
[383876223,1757152245252,-6267.5479337,0.00047967,2]
[383876224,1757152245261,-500.0,0.00047968,30]
[383876225,1757152245270,-7614.91781581,0.00047997,120]
[383876226,1757152245279,-226.59999693,0.00047997,120]
[383876227,1757152245288,-300.0,0.00047999,30]
[383876228,1757152245297,-300.0,0.00047999,30]
[383876229,1757152245306,-300.0,0.00047999,30]
[383876230,1757152245315,-150.0,0.00047999,118]
[383876231,1757152245324,-150.0,0.00047999,118]
[383876232,1757152245333,-209948.33848569,0.00048,120]
[383876233,1757152245785,-500.0,0.00035615,7]
[383876234,1757152245795,-500.0,0.00035615,7]
[383876235,1757152245806,-500.0,0.00035615,7]
[383876236,1757152245815,-500.0,0.00035615,7]
[383876237,1757152245825,-500.0,0.00035615,7]
[383876238,1757152245836,-3986.67758016,0.00048,120]
[383876239,1757152245848,-459.94361421,0.00048,120]
[383876240,1757152245859,-597.12615483,0.00048,120]
[383876241,1757152245913,-5680.49041217,0.00048,120]
[383876242,1757152245925,-818.06783151,0.00048,120]
[383876243,1757152245937,-176054.90932178,0.00048,120]
[383876245,1757152245949,-44533.24380337,0.00048,120]
[383876249,1757152246480,-3847.6422036,0.00048,120]
[383876267,1757152247187,-58.52000481,0.00038379,2]
[383876268,1757152247287,-109.75449512,0.00038379,2]
[383876269,1757152247298,-5392.0887089,0.00048,120]
[383876270,1757152247939,-603.31235,0.000411,2]
[383876271,1757152247951,-596.68765,0.000411,2]
[383876272,1757152247962,-1022.0,0.000466,2]
[383876273,1757152247972,-12098.17126518,0.00048,120]
[383876274,1757152247991,-5541.5501388,0.00048,120]
[383876275,1757152248009,-3740.0668,0.00048,120]
[383876277,1757152326573,225.31,0.00022057,2]
[383876278,1757152326784,225.31,0.00023217,2]
[383876279,1757152327074,225.31,0.00024378,2]
[383876280,1757152327228,225.31,0.00025539,2]
[383876281,1757152327455,225.31,0.000267,2]
[383876285,1757152442980,195.0,0.0002739,120]
[383876287,1757152443181,195.0,0.00026364,120]
[383876288,1757152443385,195.0,0.00027806,120]
[383876289,1757152446377,300.0,0.0002739,120]
[383876506,1757152671592,-633.6114078,0.00033682,21]
[383876507,1757152671613,-200.0,0.00034,30]
[383876509,1757152695751,-633.6114078,0.00030754,14]